bitfinex/quotes_ETHUSD_20250721
["timestamp","ask_amount","ask_price","bid_price","bid_amount"]
[1753077137400,2.64739364,3777.3,3777.2,0.001]
[1753077137698,7.68239364,3777.3,3777.2,0.001]
[1753077137880,8.14029364,3777.3,3777.2,0.001]
[1753077139307,11.14029364,3777.3,3777.2,0.001]
[1753077139508,5.77946372,3777.2,3777.1,1e-08]
[1753077139711,7.00966372,3777.2,3777.1,1e-08]
[1753077140571,7.55966372,3777.2,3777.1,1e-08]
[1753077140770,3.37636482,3776.2,3776.1,0.63739814]
[1753077140977,8.08026482,3776.2,3776.1,0.63739814]
[1753077142391,4.244,3776.2,3776.1,0.63739814]
[1753077142607,7.35006482,3776.2,3776.1,0.63739814]
[1753077142801,7.48206482,3776.2,3776.1,0.63739814]
[1753077144532,7.48406482,3776.2,3776.1,0.63739814]
[1753077144715,3.23806482,3776.2,3776.1,0.63739814]
[1753077144920,4.242,3776.2,3776.1,0.63739814]
[1753077145633,7.34806482,3776.2,3776.1,0.63739814]
[1753077146596,0.4579,3776.5,3776.1,0.63739814]
[1753077146831,2.64816482,3776.2,3776.1,0.63739814]
[1753077147137,2.64816482,3776.2,3776.1,0.63839814]
[1753077147138,11.16646482,3776.2,3776.1,0.63839814]
[1753077147433,3.92246482,3776.2,3776.1,0.63839814]
[1753077147609,8.16746482,3776.2,3776.1,0.63839814]
[1753077148190,3.92246482,3776.2,3776.1,0.63839814]
[1753077148620,8.16646482,3776.2,3776.1,0.63839814]
[1753077149130,5.5183,3776.2,3776.1,0.63839814]
[1753077149332,7.35006482,3776.2,3776.1,0.63839814]
[1753077149519,3.10606482,3776.2,3776.1,0.63839814]
[1753077149836,7.34806482,3776.2,3776.1,0.63839814]
[1753077150937,3.10606482,3776.2,3776.1,0.63839814]
[1753077151247,4.239,3776.2,3776.1,0.63839814]
[1753077151435,0.8164,3776.6,3776.1,0.63839814]
[1753077151636,4.238,3776.5,3776.1,0.63839814]
[1753077151931,4.238,3776.4,3776.1,0.63839814]
[1753077152139,4.238,3776.3,3776.1,0.63839814]
[1753077153517,6.88614373,3776.3,3776.1,0.63839814]
[1753077153716,2.64804172,3776.4,3776.1,0.63839814]
[1753077153955,4.238,3776.3,3776.1,0.63839814]
[1753077154113,4.238,3776.3,3776.1,2.63839814]
[1753077154557,2.64816482,3776.2,3776.1,2.63839814]
[1753077154759,7.34400596,3776.3,3776.1,2.63839814]
[1753077155055,6.88216482,3776.2,3776.1,2.63839814]
[1753077155235,7.34006482,3776.2,3776.1,0.63839814]
[1753077156658,0.8084,3777.1,3776.1,0.63839814]
[1753077156830,2.64815971,3776.3,3776.1,0.63839814]
[1753077157036,4.229,3776.2,3776.1,0.63839814]
[1753077157650,4.6869,3776.2,3776.1,0.63839814]
[1753077157960,7.33506482,3776.2,3776.1,0.63839814]
[1753077158149,0.132,3776.6,3776.1,0.63839814]
[1753077158376,7.33185512,3776.5,3776.1,0.63839814]
[1753077158580,2.64816482,3776.2,3776.1,0.63839814]
[1753077158782,6.87416482,3776.2,3776.1,0.63839814]
[1753077158954,4.226,3776.2,3776.1,0.63839814]
[1753077160086,0.132,3776.6,3776.1,0.63839814]
[1753077160390,4.223,3776.5,3776.1,0.63839814]
[1753077161101,4.222,3776.4,3776.2,0.132]
[1753077161958,0.132,3776.9,3776.2,0.132]
[1753077162303,4.219,3776.8,3776.2,0.74249981]
[1753077162499,6.351,3777.2,3776.2,0.74249981]
[1753077162500,6.351,3777.2,3776.3,0.02648094]
[1753077162653,4.219,3777.1,3776.8,0.132]
[1753077162856,6.351,3777.2,3776.9,2.64765859]
[1753077163082,4.219,3777.1,3777.0,2.64759455]
[1753077163283,6.351,3777.2,3777.0,2.64759455]
[1753077163593,0.5662,3777.8,3777.2,2.64744793]
[1753077163892,4.218,3777.7,3777.3,2.64738262]
[1753077164090,2.64697738,3777.9,3777.4,0.132]
[1753077164288,4.218,3777.8,3777.4,0.132]
[1753077164593,0.132,3778.1,3777.5,3.43380073]
[1753077164892,4.217,3778.2,3777.7,2.64711332]
[1753077165082,4.217,3778.1,3777.8,2.6470262]
[1753077165251,4.227,3778.0,3777.8,2.6470262]
[1753077165450,0.4342,3778.4,3777.8,2.6470262]
[1753077165451,4.227,3777.9,3777.8,2.6470262]
[1753077165658,4.227,3777.9,3777.8,3.0980262]
[1753077165891,4.227,3777.9,3777.8,3.09804325]
[1753077166199,0.04,3778.9,3777.8,1.42776945]
[1753077166365,0.04,3778.9,3778.6,2.6464723]
[1753077166565,0.04,3778.9,3778.2,3.19673906]
[1753077166792,0.04,3778.9,3778.1,0.8136]
[1753077166793,6.87540433,3778.8,3778.1,0.8136]
[1753077166980,2.64645383,3778.7,3778.1,3.8136]
[1753077167182,4.229,3778.8,3778.1,6.46040523]
[1753077167380,4.229,3778.8,3778.1,5.31814697]
[1753077167692,1.2344,3778.7,3777.6,0.756]
[1753077167894,2.64688615,3778.1,3777.6,0.756]
[1753077168096,4.228,3778.0,3777.6,0.756]
[1753077168956,6.87492748,3778.0,3777.6,0.756]
[1753077169157,4.228,3778.0,3777.6,0.756]
[1753077169463,2.64703441,3777.9,3777.6,0.756]
[1753077169791,2.64706766,3777.8,3777.2,3.0]
[1753077169990,4.228,3778.0,3777.2,3.0]
[1753077169991,2.64721223,3777.6,3777.2,1.37525255]
[1753077170169,4.225,3777.5,3777.2,0.7555]
[1753077170374,4.225,3777.5,3777.2,3.7555]
[1753077170894,4.225,3777.5,3777.2,4.2065]
[1753077171200,4.224,3777.5,3777.2,6.85391551]
[1753077171361,2.64691028,3778.0,3777.4,3.0]
[1753077171668,4.222,3777.9,3777.3,3.0]
[1753077171872,4.222,3777.9,3777.4,2.64732055]
[1753077172099,4.222,3777.9,3777.3,2.64737663]
[1753077172296,4.222,3777.9,3777.4,2.64729976]
[1753077172800,4.222,3777.9,3777.3,2.64738639]
[1753077173003,6.86897881,3777.9,3777.3,3.0]
[1753077173176,4.222,3777.9,3777.3,5.64738565]
[1753077173374,4.222,3777.9,3777.2,0.7555]
[1753077173779,2.64714452,3777.7,3777.2,0.7555]
[1753077174103,7.30318534,3777.9,3777.2,0.7555]
[1753077174403,2.64722975,3777.6,3776.8,3.45062074]
[1753077174564,4.217,3777.5,3777.0,3.0]
[1753077174765,4.217,3777.5,3777.4,0.132]
[1753077174962,0.132,3778.0,3777.4,0.132]
[1753077174963,0.7769,3778.8,3777.5,0.55]
[1753077175284,4.224,3778.0,3777.7,2.64710249]
[1753077175462,4.224,3778.0,3777.5,1.3529]
[1753077175660,4.224,3778.0,3777.8,2.64699348]
[1753077176268,4.224,3778.0,3777.5,0.8029]
[1753077176725,4.224,3778.0,3777.6,2.64713048]
[1753077176923,4.224,3778.0,3777.5,0.8029]
[1753077177126,0.4342,3777.9,3777.2,7.76]
[1753077177330,0.7769,3778.8,3778.0,2.64690312]
[1753077177640,4.222,3778.2,3778.0,2.64690312]
[1753077177840,4.222,3778.2,3777.7,0.55]
[1753077177991,4.222,3778.2,3777.6,0.55]
[1753077178186,4.222,3778.2,3778.0,2.64690312]
[1753077178417,0.4342,3778.7,3778.0,2.64690312]
[1753077178729,4.225,3778.1,3778.0,2.64690312]
[1753077179814,0.002,3778.1,3778.0,2.64690312]
[1753077180319,0.002,3778.1,3777.4,1.2539]
[1753077180643,0.002,3778.1,3777.8,2.6469744]
[1753077181094,0.002,3778.1,3777.9,2.64696844]
[1753077181294,0.002,3778.1,3777.8,2.64702072]
[1753077181508,0.002,3778.1,3777.9,2.6469704]
[1753077181708,4.215,3778.0,3777.9,2.64690648]
[1753077182315,4.215,3778.0,3777.8,2.64703933]
[1753077182528,4.215,3778.0,3777.7,2.64709626]
[1753077182697,4.213,3778.0,3777.8,2.64702967]
[1753077183208,4.213,3778.0,3777.6,2.64713928]
[1753077183398,4.213,3778.0,3777.4,1.52090432]
[1753077183731,4.213,3778.0,3777.9,2.64697318]
[1753077184338,0.002,3778.1,3777.8,2.64702475]
[1753077184641,4.21,3778.0,3777.8,2.64702475]
[1753077185138,4.21,3778.0,3777.9,0.132]
[1753077186402,6.85690312,3778.0,3777.9,0.132]
[1753077186903,5.4253,3778.0,3776.4,0.451]
[1753077187119,2.64727195,3777.5,3777.2,0.132]
[1753077187342,6.8603296,3777.4,3777.2,0.132]
[1753077187668,2.64761655,3777.0,3776.2,0.7942]
[1753077187940,4.212,3776.9,3776.3,0.82898345]
[1753077188438,6.85974049,3776.9,3776.8,0.132]
[1753077188753,7.29394049,3776.9,3776.8,0.132]
[1753077188967,4.6462,3776.9,3776.8,0.132]
[1753077189171,7.29387401,3776.9,3776.8,0.132]
[1753077190012,4.212,3776.9,3776.8,0.132]
[1753077190953,7.31577401,3776.9,3776.8,0.132]
[1753077191150,2.64775079,3776.8,3776.2,0.7942]
[1753077191342,7.31577614,3776.9,3776.6,0.132]
[1753077191520,0.4561,3776.8,3776.6,0.132]
[1753077191717,0.4561,3776.7,3776.6,0.132]
[1753077191931,4.6681,3776.9,3776.6,0.132]
[1753077192240,7.3158227,3776.9,3776.6,0.132]
[1753077192829,2.64774605,3776.8,3776.6,0.132]
[1753077193034,3.10384605,3776.8,3776.6,0.132]
[1753077193248,2.64774605,3776.8,3776.6,0.132]
[1753077193547,0.4561,3776.8,3776.6,0.132]
[1753077194263,3.10385635,3776.8,3776.6,0.132]
[1753077194415,3.10391422,3776.7,3776.6,0.132]
[1753077195017,2.64795445,3776.5,3776.4,0.132]
[1753077195328,4.199,3776.5,3776.4,0.132]
[1753077195716,6.84695445,3776.5,3776.4,0.132]
[1753077196114,7.30305445,3776.5,3776.4,0.132]
[1753077196317,4.6551,3776.5,3776.4,0.132]
[1753077196532,6.84695445,3776.5,3776.4,0.132]
[1753077196734,4.6551,3776.5,3776.4,0.132]
[1753077197024,7.30305445,3776.5,3776.4,0.132]
[1753077198149,2.64803083,3776.4,3776.2,0.132]
[1753077198351,2.64809469,3776.3,3776.2,0.132]
[1753077198854,3.10419469,3776.3,3776.2,0.132]
[1753077199258,2.64804737,3776.4,3776.2,0.132]
[1753077199424,0.4561,3776.3,3776.2,0.132]
[1753077199626,3.10419469,3776.3,3776.2,0.132]
[1753077200832,0.132,3776.8,3776.2,0.132]
[1753077201037,0.132,3776.8,3776.1,0.63839814]
[1753077201038,2.64789419,3776.6,3776.3,0.132]
[1753077201556,0.4561,3776.5,3776.1,0.63839814]
[1753077201869,4.6461,3776.4,3776.1,0.77039814]
[1753077202064,6.83802512,3776.4,3776.1,0.77039814]
[1753077202238,4.19,3776.4,3776.1,0.77039814]
[1753077202764,7.29414107,3776.4,3776.1,0.77039814]
[1753077203553,0.4561,3776.3,3776.1,0.63839814]
[1753077203751,4.19,3776.4,3776.1,0.63839814]
[1753077203957,0.4561,3776.2,3776.1,0.63839814]
[1753077204135,3.10426482,3776.2,3776.1,0.63839814]
[1753077205261,0.4561,3776.2,3776.1,0.63839814]
[1753077205466,3.10426482,3776.2,3776.1,0.63839814]
[1753077206041,8.04506482,3776.2,3776.1,0.63839814]
[1753077207533,4.18,3776.2,3776.1,0.63839814]
[1753077207735,6.82816482,3776.2,3776.1,0.63839814]
[1753077208063,7.28426482,3776.2,3776.1,0.63839814]
[1753077209377,2.64816482,3776.2,3776.1,0.63839814]
[1753077209553,6.82616482,3776.2,3776.1,0.63839814]
[1753077210076,4.178,3776.2,3776.1,0.63839814]
[1753077210254,6.82616482,3776.2,3776.1,0.63839814]
[1753077211378,4.178,3776.2,3776.1,0.63839814]
[1753077211680,6.82616482,3776.2,3776.1,0.63839814]
[1753077212441,7.28226482,3776.2,3776.1,0.63839814]
[1753077212881,3.10426482,3776.2,3776.1,0.63839814]
[1753077213048,4.175,3776.2,3776.1,0.63839814]
[1753077213449,2.64802891,3776.4,3776.1,0.77039814]
[1753077213650,4.173,3776.3,3776.1,0.77039814]
[1753077213982,4.6291,3776.3,3776.1,0.63839814]
[1753077214168,3.10426482,3776.2,3776.1,0.63839814]
[1753077214368,3.23626482,3776.2,3776.1,0.63839814]
[1753077214867,6.99606482,3776.2,3776.1,0.63839814]
[1753077222565,0.002,3777.1,3776.2,0.8234]
[1753077222781,4.174,3777.0,3776.3,0.71222199]
[1753077223096,2.64767971,3776.9,3776.6,0.132]
[1753077223284,2.64781422,3776.7,3776.6,0.132]
[1753077223485,4.174,3776.8,3776.3,0.132]
[1753077223690,6.82179657,3776.8,3776.3,0.132]
[1753077224263,4.174,3776.8,3776.3,0.132]
[1753077226602,2.64781599,3776.7,3776.3,0.132]
[1753077226907,4.172,3776.6,3776.1,0.77039814]
[1753077227528,3.10110383,3776.5,3776.1,0.63839814]
[1753077227706,2.64816482,3776.2,3776.1,0.63839814]
[1753077227908,7.27126482,3776.2,3776.1,0.63839814]
[1753077229130,0.19905513,3777.8,3776.1,0.63839814]
[1753077229422,2.64773045,3776.9,3776.2,0.8214]
[1753077229628,2.64801812,3776.5,3776.3,0.132]
[1753077229831,4.243,3776.4,3776.3,0.132]
[1753077229996,6.89102457,3776.4,3776.3,0.132]
[1753077230184,4.243,3776.4,3776.3,0.132]
[1753077234270,0.132,3776.9,3776.3,1.2459676]
[1753077234472,0.002,3777.1,3777.0,3.41970391]
[1753077234840,0.002,3777.1,3777.0,3.87900391]
[1753077236475,0.002,3777.1,3777.0,1.2314]
[1753077236691,0.002,3777.6,3777.5,2.64725347]
[1753077236889,0.002,3777.6,3777.5,14.13995481]
[1753077237073,0.002,3777.6,3777.5,15.79221208]
[1753077237278,0.002,3777.6,3777.5,16.25151208]
[1753077237801,0.002,3777.6,3777.5,2.4402298]
[1753077237980,0.002,3777.6,3777.5,0.7615]
[1753077238174,0.002,3777.6,3777.5,1.2208]
[1753077238891,0.002,3777.6,3777.5,3.86805347]
[1753077239097,0.002,3777.6,3777.5,14.59925481]
[1753077239298,0.002,3777.6,3777.5,14.57278228]
[1753077239502,0.002,3777.6,3777.5,16.8447948]
[1753077239862,0.002,3777.9,3777.8,6.95854325]
[1753077240505,0.002,3777.9,3777.8,0.7615]
[1753077241875,0.002,3777.9,3777.2,0.7994]
[1753077242200,0.4531,3777.8,3777.2,0.7994]
[1753077242401,2.64711332,3777.7,3776.6,0.7994]
[1753077242702,2.64760049,3777.1,3776.6,0.7994]
[1753077242999,6.88448627,3777.2,3776.6,0.7994]
[1753077243202,6.88446507,3777.2,3776.6,0.7994]
[1753077243368,2.64758772,3777.1,3776.6,0.7994]
[1753077243564,2.64763459,3777.0,3776.6,0.7994]
[1753077243776,3.10071825,3777.0,3776.6,0.7994]
[1753077244200,2.6476911,3776.9,3776.3,0.7992]
[1753077244516,2.64776955,3776.8,3776.7,0.132]
[1753077244718,2.64768527,3776.9,3776.7,0.132]
[1753077244917,2.64774412,3776.8,3776.7,0.132]
[1753077245397,0.4531,3777.0,3776.7,0.132]
[1753077245598,4.237,3777.2,3776.7,0.132]
[1753077245914,2.64756562,3777.1,3776.7,0.132]
[1753077246120,3.10066562,3777.1,3776.7,0.132]
[1753077246782,2.64762327,3777.0,3776.7,0.132]
[1753077246980,0.4531,3777.1,3776.7,0.132]
[1753077247285,4.232,3777.0,3776.6,2.64787941]
[1753077247513,0.4531,3777.4,3776.6,2.64787941]
[1753077247514,2.64741209,3777.3,3776.9,0.132]
[1753077247679,2.64741209,3777.3,3776.4,0.02648024]
[1753077247680,0.7282,3777.1,3774.1,0.04]
[1753077247878,0.002,3777.9,3775.6,7.70472881]
[1753077247879,1.29215332,3776.0,3775.6,7.70472881]
[1753077248128,2.69284668,3776.6,3776.3,0.8277]
[1753077248285,0.132,3777.0,3776.4,0.132]
[1753077248487,0.132,3777.0,3776.7,0.132]
[1753077248488,4.263,3777.0,3776.7,0.132]
[1753077248679,2.64774412,3776.8,3776.7,0.132]
[1753077248877,2.64792511,3776.6,3776.3,0.9597]
[1753077249082,4.261,3776.8,3776.3,0.132]
[1753077249309,4.261,3776.8,3775.9,0.8277]
[1753077249491,4.261,3776.9,3776.7,0.132]
[1753077249695,0.7282,3777.7,3776.0,0.48578305]
[1753077249696,6.8041,3778.0,3776.8,0.4593]
[1753077250009,6.8041,3778.0,3777.5,0.132]
[1753077250189,0.042,3777.9,3777.5,0.132]
[1753077250385,0.06848041,3777.9,3777.5,0.132]
[1753077250701,0.4415,3777.8,3777.0,2.64759628]
[1753077251012,0.5735,3777.8,3777.2,0.132]
[1753077251505,0.042,3777.9,3777.1,0.49427533]
[1753077251734,0.042,3777.9,3777.8,2.64704325]
[1753077255052,0.042,3778.9,3778.5,2.64654423]
[1753077255365,0.042,3778.9,3778.3,2.64669295]
[1753077255549,2.68829191,3778.9,3777.9,3.89710374]
[1753077255726,3.12979191,3778.9,3778.0,2.64690312]
[1753077256246,2.64648282,3778.6,3777.9,0.7824]
[1753077256449,2.64648282,3778.6,3777.9,3.4293582]
[1753077256621,0.4835,3778.9,3777.9,3.4293582]
[1753077256622,0.042,3778.9,3778.0,0.82556903]
[1753077256822,0.042,3778.9,3778.3,2.64667644]
[1753077257623,2.68831565,3778.9,3778.1,2.64681931]
[1753077258045,0.042,3778.9,3778.2,2.6467355]
[1753077258443,2.6882764,3778.9,3778.0,3.91379674]
[1753077258651,2.6882764,3778.9,3778.2,2.64672892]
[1753077258652,0.042,3778.9,3778.2,2.64672892]
[1753077258852,0.042,3778.9,3778.0,1.2669]
[1753077259056,0.042,3778.9,3778.0,3.91378374]
[1753077259269,2.64841297,3778.7,3778.0,0.7991]
[1753077259472,4.317,3778.6,3778.0,3.44600206]
[1753077259682,0.002,3778.7,3778.1,1.04426833]
[1753077259978,0.002,3778.7,3778.6,2.64648282]
[1753077260377,0.002,3778.7,3778.6,7.42158282]
[1753077264040,0.002,3778.7,3778.6,6.95378282]
[1753077264240,0.002,3778.7,3778.6,7.42158282]
[1753077264449,0.002,3778.7,3778.6,9.62997405]
[1753077264949,0.002,3778.7,3778.6,9.76197405]
[1753077265472,0.002,3778.7,3778.6,14.07697405]
[1753077266469,0.002,3778.7,3778.6,9.76197405]
[1753077266767,0.002,3778.7,3778.6,11.86658282]
[1753077267173,0.002,3778.7,3778.6,11.73458282]
[1753077267831,0.002,3778.7,3778.6,6.95378282]
[1753077268037,0.002,3778.7,3778.6,11.73158282]
[1753077268568,0.002,3778.7,3778.6,7.42158282]
[1753077268739,0.002,3778.7,3778.6,12.73640117]
[1753077270459,0.002,3778.7,3778.6,12.73440117]
[1753077271173,0.002,3778.7,3778.6,6.40378282]
[1753077271338,0.002,3778.7,3778.6,0.7573]
[1753077271543,0.002,3778.7,3778.4,4.303]
[1753077271742,0.002,3778.7,3778.2,7.303]
[1753077271972,0.002,3778.7,3778.2,4.302]
[1753077272150,0.002,3778.7,3778.6,3.19648282]
[1753077272352,0.002,3778.7,3778.6,6.22294764]
[1753077272637,0.002,3778.7,3778.6,7.44698282]
[1753077273947,0.002,3778.7,3778.6,11.74598282]
[1753077274776,0.002,3778.7,3778.6,10.72818282]
[1753077274976,0.002,3778.7,3778.6,3.7827]
[1753077275180,0.002,3778.7,3778.6,7.72618282]
[1753077275479,0.002,3778.7,3778.6,8.27618282]
[1753077275996,0.002,3778.7,3778.6,5.0797]
[1753077276980,0.002,3778.7,3778.6,4.297]
[1753077277192,0.002,3778.7,3778.6,4.429]
[1753077277577,0.002,3778.7,3778.6,0.132]
[1753077277777,0.4435,3778.7,3778.6,0.132]
[1753077278008,3.08991278,3778.7,3778.6,0.132]
[1753077278899,1.1717,3778.7,3778.6,0.132]
[1753077279398,3.81811278,3778.7,3778.6,0.132]
[1753077279579,3.81811278,3778.7,3778.3,0.132]
[1753077279781,0.46798041,3778.6,3778.3,0.132]
[1753077280000,0.4415,3778.5,3778.3,0.132]
[1753077280505,0.7302,3778.7,3778.3,0.132]
[1753077280655,0.7302,3778.7,3778.4,2.6465822]
[1753077281501,1.1679,3778.7,3778.3,2.77867744]
[1753077281659,1.1679,3778.7,3778.6,2.64648282]
[1753077281660,0.002,3778.7,3778.6,2.64648282]
[1753077281876,0.002,3778.7,3778.6,2.77848282]
[1753077282624,0.002,3778.7,3778.6,6.82784764]
[1753077282790,0.002,3778.7,3778.6,6.80138282]
[1753077283104,0.002,3778.7,3778.6,6.32848282]
[1753077283403,0.002,3778.7,3778.6,10.60948282]
[1753077283607,0.002,3778.7,3778.6,12.01583339]
[1753077283989,0.002,3778.7,3778.6,7.73483339]
[1753077284201,0.002,3778.7,3778.6,10.05748282]
[1753077284398,0.002,3778.7,3778.6,2.77848282]
[1753077285114,0.002,3778.7,3778.6,0.132]
[1753077285420,0.002,3778.7,3778.6,2.77848282]
[1753077285722,0.002,3778.7,3778.6,6.80138282]
[1753077285873,0.002,3778.7,3778.6,3.132]
[1753077286077,0.002,3778.7,3778.6,2.77848282]
[1753077286273,0.002,3778.7,3778.6,3.77495292]
[1753077286983,0.002,3778.7,3778.6,2.77848282]
[1753077287715,0.002,3778.7,3778.6,0.132]
[1753077288210,0.4397,3778.7,3778.6,0.132]
[1753077295482,0.002,3778.7,3778.6,0.132]
[1753077295686,0.002,3778.7,3778.6,2.77848282]
[1753077295888,0.002,3778.7,3778.6,0.132]
[1753077297518,0.002,3778.7,3778.6,0.12896668]
[1753077300124,0.002,3778.7,3778.6,2.7754495]
[1753077300323,0.002,3778.7,3778.6,0.12896668]
[1753077300837,0.4397,3778.7,3778.6,2.7754495]
[1753077301031,0.002,3778.7,3778.6,2.7754495]
[1753077301403,0.4397,3778.7,3778.6,0.12896668]
[1753077302433,0.002,3778.7,3778.6,3.5926495]
[1753077302635,0.002,3778.7,3778.6,4.7159358]
[1753077302833,0.002,3778.7,3778.6,8.2659358]
[1753077303054,0.002,3778.7,3778.6,8.23947098]
[1753077303613,1e-08,3778.9,3778.8,3.19634275]
[1753077303921,1e-08,3778.9,3778.8,6.67734042]
[1753077304122,1e-08,3778.9,3778.8,7.123777]
[1753077304355,1e-08,3778.9,3778.8,10.123777]
[1753077304931,1e-08,3778.9,3778.8,14.358777]
[1753077306032,1e-08,3778.9,3778.8,14.357777]
[1753077308465,1e-08,3778.9,3778.8,14.350777]
[1753077310461,0.002,3779.6,3779.2,6.99026265]
[1753077310619,0.002,3779.6,3779.2,12.44253105]
[1753077310819,0.002,3779.6,3779.2,13.03543105]
[1753077311634,0.002,3779.6,3779.2,8.81143105]
[1753077311836,0.002,3779.6,3779.2,13.03543105]
[1753077315863,0.04,3779.9,3779.7,0.55]
[1753077316183,0.04,3779.9,3779.8,19.39060068]
[1753077316350,0.04,3779.9,3779.8,19.36314426]
[1753077316533,0.04,3779.9,3779.8,19.82404426]
[1753077316739,0.04,3779.9,3779.8,11.65841545]
[1753077317045,0.04,3779.9,3779.8,11.65641545]
[1753077317261,0.04,3779.9,3779.8,10.85921545]
[1753077317434,0.04,3779.9,3779.8,11.32011545]
[1753077317837,0.04,3779.9,3779.8,12.10681545]
[1753077318244,0.04,3779.9,3779.8,7.89481545]
[1753077318434,0.04,3779.9,3779.8,11.64491545]
[1753077318972,0.04,3779.9,3779.8,10.85821545]
[1753077319385,0.04,3779.9,3779.8,3.132]
[1753077319592,0.04,3779.9,3779.8,7.344]
[1753077319793,0.04,3779.9,3779.8,10.53964262]
[1753077320374,0.04,3779.9,3779.8,11.00054262]
[1753077320664,0.04,3779.9,3779.8,11.78724262]
[1753077320856,0.04,3779.9,3779.8,13.78668632]
[1753077321514,1e-08,3780.3,3780.1,0.8292]
[1753077321654,0.4346,3781.6,3780.1,0.8292]
[1753077321655,0.4346,3781.6,3780.8,3.19494286]
[1753077321850,0.7282,3781.8,3780.8,8.514635]
[1753077322166,0.132,3782.1,3780.8,7.53494286]
[1753077322480,3.41240439,3781.9,3780.8,10.20091389]
[1753077322662,0.4746,3780.9,3780.8,6.98594286]
[1753077323175,0.04,3780.9,3780.8,7.53594286]
[1753077323586,0.4746,3780.9,3780.8,2.77694286]
[1753077323811,0.4746,3780.9,3780.8,6.98494286]
[1753077324150,0.4746,3780.9,3780.8,4.34]
[1753077324385,0.4746,3780.9,3780.8,6.98494286]
[1753077324656,0.04,3780.9,3780.8,8.24594431]
[1753077324868,0.04,3780.9,3780.8,8.79594431]
[1753077326367,0.04,3780.9,3780.8,7.53294286]
[1753077326981,0.4746,3780.9,3780.8,7.53294286]
[1753077327166,0.04,3780.9,3780.8,9.53294286]
[1753077327367,0.04,3780.9,3780.8,9.53094286]
[1753077328504,0.04,3780.9,3780.8,9.99184286]
[1753077328703,0.04,3780.9,3780.8,11.09463431]
[1753077328865,0.04,3780.9,3780.8,4.77694286]
[1753077329071,0.04,3780.9,3780.8,8.97594286]
[1753077329973,0.04,3780.9,3780.8,13.19724286]
[1753077330282,0.04,3780.9,3780.8,5.19494286]
[1753077330467,0.04,3780.9,3780.8,4.64494286]
[1753077330672,0.4746,3780.9,3780.8,8.84194286]
[1753077330984,0.4746,3780.9,3780.8,4.64494286]
[1753077331187,0.4746,3780.9,3780.8,8.84194286]
[1753077332089,0.04,3780.9,3780.8,8.84194286]
[1753077333076,0.04,3780.9,3780.8,9.39194286]
[1753077333275,0.04,3780.9,3780.8,10.84064431]
[1753077333478,0.04,3780.9,3780.8,6.64364431]
[1753077333722,0.4746,3780.9,3780.8,2.0]
[1753077334424,0.04,3780.9,3780.8,2.0]
[1753077334630,0.9128,3781.8,3781.7,2.6443134]
[1753077334790,0.04,3781.9,3781.8,2.64424348]
[1753077335204,0.04,3781.9,3781.8,0.02644243]
[1753077335402,0.04,3781.9,3781.8,2.67068591]
[1753077335725,0.04,3781.9,3781.8,2.64424348]
[1753077337224,0.04,3781.9,3780.3,3.41935361]
[1753077337425,0.4746,3781.9,3781.1,2.64473301]
[1753077337604,0.4746,3781.9,3781.2,4.21444663]
[1753077338151,0.4746,3781.9,3781.6,2.64432655]
[1753077338430,0.7282,3781.6,3780.2,0.7624]
[1753077338594,0.7282,3781.6,3780.6,2.64503184]
[1753077338595,2.64458342,3781.4,3780.6,2.64503184]
[1753077338794,0.4346,3781.3,3780.5,7.189]
[1753077339017,0.7282,3781.6,3780.5,8.81319807]
[1753077339331,0.4346,3781.5,3780.6,6.83408279]
[1753077339689,0.7282,3781.3,3779.9,2.64555112]
[1753077339888,0.7282,3781.3,3779.8,0.4609]
[1753077339889,0.7282,3780.6,3779.5,0.8023]
[1753077340094,3.07976561,3780.5,3779.6,4.187]
[1753077340326,3.07462272,3780.4,3780.3,0.132]
[1753077340643,0.4294,3780.4,3780.3,0.132]
[1753077340807,0.7282,3780.6,3780.3,0.132]
[1753077341008,0.4294,3780.4,3780.3,0.132]
[1753077341540,0.7282,3780.6,3780.3,1.532]
[1753077341831,0.4294,3780.5,3780.3,1.532]
[1753077342037,3.37329301,3780.6,3780.3,1.532]
[1753077342209,0.4294,3780.4,3780.3,1.532]
[1753077342742,3.80282272,3780.4,3780.3,1.4]
[1753077343040,2.64543686,3780.1,3779.9,0.132]
[1753077343448,0.4294,3780.0,3779.9,0.132]
[1753077344142,3.80310264,3780.0,3779.9,0.132]
[1753077344639,3.80310264,3780.0,3779.5,0.001]
[1753077344640,2.64564835,3779.8,3779.5,0.001]
[1753077344937,2.64574065,3779.7,3779.5,0.001]
[1753077345141,3.40046303,3779.6,3779.5,0.001]
[1753077345342,3.82986303,3779.6,3779.5,0.001]
[1753077346042,3.80338262,3779.6,3779.5,0.001]
[1753077346545,1.1576,3779.6,3779.5,0.001]
[1753077347111,1.1576,3779.6,3779.5,0.801]
[1753077349440,1.1576,3779.6,3779.5,3.44685262]
[1753077349441,0.7282,3779.6,3779.5,3.44685262]
[1753077349645,0.7282,3779.9,3779.8,2.64564262]
[1753077349954,1.1576,3779.9,3779.6,2.64573633]
[1753077350250,0.4294,3779.8,3779.7,0.132]
[1753077350670,0.7282,3780.2,3779.7,2.77769413]
[1753077350822,0.7282,3780.5,3779.8,0.35786941]
[1753077351017,0.7282,3780.5,3779.5,1.2413]
[1753077351018,0.7282,3780.5,3780.2,2.64536209]
[1753077351253,1.1576,3780.5,3780.1,2.77739377]
[1753077351457,1.1576,3780.5,3780.2,2.64536267]